bitfinex-derivatives/quotes_ETHF0:USTF0_20250410
["timestamp","ask_amount","ask_price","bid_price","bid_amount"]
[1744279269979,4.87379933,1603.4,1603.3,1.24777]
[1744279270170,4.87379933,1603.4,1603.3,8.93757]
[1744279270367,4.87379933,1603.4,1603.3,9.45557]
[1744279270583,4.87379933,1603.4,1603.3,5.72977]
[1744279271081,4.87379933,1603.4,1603.3,7.42807]
[1744279273770,0.00935016,1603.4,1603.3,7.42807]
[1744279273980,0.00935016,1603.4,1603.3,5.72977]
[1744279274579,0.00935016,1603.4,1603.3,7.38507]
[1744279274781,0.00935016,1603.4,1603.3,10.59287]
[1744279275380,0.00935016,1603.4,1603.3,15.59287]
[1744279276076,0.00935016,1603.4,1603.3,7.38507]
[1744279276280,4.46484016,1603.4,1603.3,4.482]
[1744279276489,1.25704016,1603.4,1603.3,4.482]
[1744279276672,4.46484016,1603.4,1603.3,4.482]
[1744279276878,0.00935016,1603.4,1603.3,5.72977]
[1744279277888,0.00935016,1603.4,1603.3,7.14787]
[1744279278072,0.00935016,1603.4,1603.3,5.72977]
[1744279278272,1.25704016,1603.4,1603.3,5.72977]
[1744279278477,0.00935016,1603.4,1603.3,5.72977]
[1744279278780,0.00935016,1603.4,1603.3,1.24777]
[1744279278979,1.24777,1603.3,1603.2,1.24779]
[1744279279175,2.63877,1603.3,1603.2,1.24779]
[1744279279381,1.391,1603.3,1603.2,1.24779]
[1744279280088,0.00935016,1603.4,1603.3,1.24777]
[1744279280687,0.00935016,1603.4,1603.3,2.79087]
[1744279282490,0.00935016,1603.4,1603.3,5.99867]
[1744279284382,1.57375016,1603.4,1603.3,2.79087]
[1744279284584,1.57375016,1603.4,1603.3,5.99867]
[1744279287993,1.57375016,1603.4,1603.3,2.79087]
[1744279289294,1.24777,1603.3,1603.2,1.24778]
[1744279289596,3.81137,1603.3,1603.2,1.24785]
[1744279289790,3.81142,1603.3,1603.1,5.72886]
[1744279289992,2.79945,1603.2,1603.1,5.72886]
[1744279290295,1.5516,1603.2,1603.1,5.72886]
[1744279291497,1.5516,1603.2,1603.1,8.93666]
[1744279291697,1.5516,1603.2,1603.1,10.61136]
[1744279292000,0.00935016,1603.4,1603.3,1.24777]
[1744279292186,1.66185016,1603.4,1603.3,1.24777]
[1744279292388,1.66185016,1603.4,1603.3,4.45557]
[1744279292593,1.66185016,1603.4,1603.3,6.13027]
[1744279294190,0.00935016,1603.4,1603.3,6.13027]
[1744279294392,0.00935016,1603.4,1603.3,11.13027]
[1744279294889,0.00935016,1603.4,1603.3,11.634406]
[1744279295596,0.00935016,1603.4,1603.3,11.13027]
[1744279295795,0.00935016,1603.4,1603.3,6.13027]
[1744279296496,0.00935016,1603.4,1603.3,6.64186023]
[1744279296698,0.00935016,1603.4,1603.3,6.13027]
[1744279297402,0.00935016,1603.4,1603.3,4.45557]
[1744279297606,0.00935016,1603.4,1603.3,8.93357]
[1744279297805,0.00935016,1603.4,1603.3,5.72577]
[1744279297998,1.54395016,1603.4,1603.3,5.72577]
[1744279298198,7.79164016,1603.4,1603.2,1.24778]
[1744279298495,1.54395016,1603.4,1603.3,1.24777]
[1744279301309,1.24787,1603.2,1603.0,4.478]
[1744279301604,4.0622,1603.1,1603.0,4.478]
[1744279301807,4.0622,1603.1,1603.0,5.726]
[1744279302308,5.31013,1603.1,1603.0,4.478]
[1744279302504,4.0622,1603.1,1603.0,5.726]
[1744279303305,4.0622,1603.1,1603.0,4.478]
[1744279303609,4.0622,1603.1,1603.0,5.726]
[1744279304014,0.00935016,1603.4,1603.0,8.9338]
[1744279304309,1.7021,1603.3,1603.2,1.24785]
[1744279306912,6.17889933,1603.4,1603.3,1.24777]
[1744279307118,7.72359933,1603.4,1603.3,1.24777]
[1744279307912,7.72359933,1603.4,1603.0,7.6858]
[1744279308123,1.24788,1603.2,1603.0,5.72598]
[1744279308412,5.36543,1603.1,1603.0,4.478]
[1744279308612,4.1175,1603.1,1603.0,5.726]
[1744279309322,1.5447,1603.1,1603.0,8.9338]
[1744279310316,1.5447,1603.1,1603.0,10.5593]
[1744279310512,1.9099,1603.3,1603.2,1.24785]
[1744279310817,1.5431,1603.3,1603.2,4.45565]
[1744279311313,1.5431,1603.3,1603.2,5.72345]
[1744279313027,0.00935016,1603.4,1603.3,1.24777]
[1744279313320,0.00935016,1603.4,1603.3,7.42397]
[1744279314009,1.59665016,1603.4,1603.3,7.42397]
[1744279315514,0.00935016,1603.4,1603.3,7.42397]
[1744279316019,0.00935016,1603.4,1603.3,12.42397]
[1744279318116,0.00935016,1603.4,1603.3,2.94497]
[1744279318316,0.00935016,1603.4,1603.3,7.42297]
[1744279318622,0.00935016,1603.4,1603.3,5.72577]
[1744279319322,0.00935016,1603.4,1603.3,1.24777]
[1744279319531,0.00935016,1603.4,1603.3,5.72577]
[1744279320023,0.00935016,1603.4,1603.3,31.01604097]
[1744279320721,0.00935016,1603.4,1603.3,32.29344097]
[1744279322621,0.00935016,1603.4,1603.3,24.90754097]
[1744279322823,0.00935016,1603.4,1603.3,29.38554097]
[1744279324521,0.00935016,1603.4,1603.3,15.41275464]
[1744279325314,0.00935016,1603.4,1603.3,17.03615464]
[1744279325926,1.5547,1603.7,1603.6,1.24754]
[1744279326226,1.2704,1603.8,1603.7,1.24746]
[1744279326429,2.8251,1603.8,1603.7,2.87086]
[1744279326914,2.8251,1603.8,1603.7,43.67086]
[1744279327417,2.8251,1603.8,1603.7,42.04746]
[1744279328522,7.8251,1603.8,1603.6,0.00935016]
[1744279328723,4.09406,1603.7,1603.6,0.00935016]
[1744279329126,9.09406,1603.7,1603.6,0.00935016]
[1744279329931,2.8466,1603.7,1603.6,1.25689016]
[1744279330128,2.8466,1603.7,1603.6,4.46469016]
[1744279332646,2.8466,1603.7,1603.6,1.25689016]
[1744279332838,2.8466,1603.7,1603.6,5.73289016]
[1744279333440,1.5875,1603.7,1603.6,8.94069016]
[1744279333840,1.5875,1603.7,1603.6,10.61299016]
[1744279334846,1.5875,1603.7,1603.6,11.84569016]
[1744279335238,1.24665016,1603.9,1603.8,1.24738]
[1744279335440,4.11375016,1603.9,1603.8,1.24738]
[1744279336738,2.21360901,1604.0,1603.9,1.2473]
[1744279336944,9.44197251,1604.4,1604.3,1.24699]
[1744279337142,9.44197251,1604.4,1604.3,8.93079]
[1744279339149,9.44197251,1604.4,1604.3,5.72299]
[1744279340241,11.02177251,1604.4,1604.3,5.72299]
[1744279340450,11.02177251,1604.4,1604.3,8.93079]
[1744279340748,9.44197251,1604.4,1604.3,19.92679]
[1744279340943,8.07596251,1604.4,1604.3,19.92679]
[1744279341150,8.07596251,1604.4,1604.3,21.59799]
[1744279341351,8.07596251,1604.4,1604.3,62.39799]
[1744279341846,0.00935016,1604.5,1604.4,1.24692]
[1744279342043,0.00935016,1604.5,1604.4,4.24662]
[1744279342949,1.6e-07,1604.5,1604.4,9.24662]
[1744279343145,1.6e-07,1604.5,1604.4,15.24262]
[1744279343652,1.6e-07,1604.5,1604.4,56.04262]
[1744279344949,1.6e-07,1604.5,1604.4,51.04262]
[1744279345147,1.6e-07,1604.5,1604.4,55.51662]
[1744279349553,1.6e-07,1604.5,1604.4,49.52062]
[1744279349754,1.6e-07,1604.5,1604.4,48.19212]
[1744279350256,1.69330016,1604.5,1604.4,46.52092]
[1744279351253,2.94014016,1604.5,1604.3,3.2078]
[1744279351452,1.24694,1604.4,1604.3,3.2078]
[1744279351752,1.6933,1604.4,1604.3,49.72779]
[1744279351952,1.6e-07,1604.5,1604.4,1.24692]
[1744279352155,1.60810016,1604.5,1604.4,1.24692]
[1744279353448,1.60810016,1604.5,1604.4,2.89752]
[1744279353652,1.6e-07,1604.5,1604.4,2.89752]
[1744279353860,1.6e-07,1604.5,1604.4,4.10262]
[1744279354059,1.60810016,1604.5,1604.4,4.10262]
[1744279355351,1.60810016,1604.5,1604.4,2.89752]
[1744279355952,1.6e-07,1604.5,1604.4,2.89752]
[1744279358353,2.4802,1604.9,1604.4,12.6466]
[1744279358547,4.1154,1605.2,1605.1,1.2463]
[1744279358765,1.24605,1605.6,1605.1,10.79473]
[1744279358766,1.86711,1605.6,1605.1,10.79473]
[1744279359056,2.8745,1605.4,1605.3,1.24616]
[1744279360454,2.8745,1605.4,1605.3,4.45396]
[1744279360764,1.25025016,1605.5,1605.4,1.24614]
[1744279360962,2.81035016,1605.5,1605.4,5.71714]
[1744279361557,0.00935016,1605.5,1605.4,5.71714]
[1744279361766,0.00935016,1605.5,1605.4,7.36684]
[1744279362154,1.58305016,1605.5,1605.4,7.36684]
[1744279363060,0.00935016,1605.5,1605.4,7.36684]
[1744279364163,1.58305016,1605.5,1605.4,7.36684]
[1744279364968,0.00935016,1605.5,1605.4,7.36684]
[1744279365560,1.57305016,1605.5,1605.4,7.36684]
[1744279365763,1.57305016,1605.5,1605.4,5.71714]
[1744279365964,1.57305016,1605.5,1605.4,1.24614]
[1744279366164,1.57305016,1605.5,1605.4,5.71614]
[1744279366361,2.81911016,1605.5,1605.4,4.47]
[1744279366660,7.81911016,1605.5,1605.4,4.47]
[1744279366861,7.19415016,1605.5,1605.2,4.47935016]
[1744279367167,1.5637,1605.4,1605.2,5.72562016]
[1744279367368,2.80986,1605.4,1605.2,1.25560016]
[1744279367671,1.5637,1605.4,1605.2,1.25560016]
[1744279367965,1.6374,1605.3,1605.2,1.25560016]
[1744279368768,1.6374,1605.3,1605.2,0.00935016]
[1744279369567,1.6374,1605.3,1605.2,1.25564016]
[1744279370171,1.6374,1605.3,1605.2,5.72564016]
[1744279372871,1.6374,1605.3,1605.2,4.47835016]
[1744279373168,1.6374,1605.3,1605.2,5.72464016]
[1744279373372,1.6374,1605.3,1605.2,4.47835016]
[1744279373572,2.88362,1605.3,1605.2,4.47835016]
[1744279374370,1.6374,1605.3,1605.2,5.72464016]
[1744279374775,2.88362,1605.3,1605.2,5.72464016]
[1744279375177,1.6374,1605.3,1605.2,5.72464016]
[1744279375378,2.88362,1605.3,1605.2,5.72464016]
[1744279375981,2.88362,1605.3,1605.2,4.47835016]
[1744279376476,7.88362,1605.3,1605.2,0.00935016]
[1744279376777,1.24652,1605.0,1604.8,1.24654]
[1744279376975,1.24653,1604.9,1604.8,5.71554]
[1744279377380,1.24653,1604.9,1604.8,4.469]
[1744279377581,1.24653,1604.9,1604.8,5.71561]
[1744279377774,1.24653,1604.9,1604.8,4.469]
[1744279378079,2.8968,1605.0,1604.8,5.71558]
[1744279378278,1.24653,1604.9,1604.8,4.469]
[1744279378474,2.89683,1604.9,1604.8,4.469]
[1744279378877,1.24661,1604.8,1604.7,1.25601016]
[1744279379183,4.18751,1604.8,1604.7,4.47835016]
[1744279379375,9.18751,1604.8,1604.7,0.00935016]
[1744279379573,13.01641,1604.8,1604.7,0.00935016]
[1744279379774,1.24684,1604.5,1604.4,4.469]
[1744279379976,1.24692,1604.4,1604.3,9.68698464]
[1744279380174,3.51032,1604.4,1604.3,9.68698464]
[1744279380482,8.51032,1604.4,1604.3,9.68698464]
[1744279380678,7.2634,1604.4,1604.3,9.68698464]
[1744279380883,7.2634,1604.4,1604.3,10.93397464]
[1744279381078,2.2634,1604.4,1604.3,10.93397464]
[1744279381279,2.2634,1604.4,1604.3,1.24699]
[1744279381478,3.51037,1604.4,1604.2,1.25637016]
[1744279381776,2.2634,1604.4,1604.3,1.24699]
[1744279382286,2.2634,1604.4,1604.3,4.45479]
[1744279382474,2.2634,1604.4,1604.3,1.24699]
[1744279382876,2.2634,1604.4,1604.3,4.45479]
[1744279383284,1.6423,1604.4,1604.3,4.45479]
[1744279383487,0.00935016,1604.5,1604.4,1.24692]
[1744279383688,0.00935016,1604.5,1604.4,7.39442]
[1744279383884,0.00935016,1604.5,1604.4,13.65202]
[1744279384980,0.00935016,1604.5,1604.4,7.39442]
[1744279385284,0.00935016,1604.5,1604.4,48.19442]
[1744279385981,0.00935016,1604.5,1604.4,53.19442]
[1744279390381,1.3218,1605.2,1605.1,1.24637]
[1744279390685,3.0063,1605.2,1605.1,4.469]
[1744279390892,1.24638,1605.1,1604.9,7.6768]
[1744279391078,1.6845,1605.0,1604.9,7.6768]
[1744279391276,1.6845,1605.0,1604.9,8.92333]
[1744279391277,3.0617,1605.0,1604.9,8.92333]
[1744279391482,3.0617,1605.0,1604.9,49.72333]
[1744279391791,3.0617,1605.0,1604.9,48.4768]
[1744279391985,9.30815,1605.0,1604.9,7.6768]
[1744279392396,9.30815,1605.0,1604.9,4.469]
[1744279392580,8.6828,1605.0,1604.7,4.469]
[1744279392784,1.2466,1604.9,1604.7,4.469]
[1744279392985,2.80041,1604.8,1604.7,4.469]
[1744279393194,2.80042,1604.8,1604.6,4.45449]
[1744279393395,1.3772,1604.7,1604.6,5.71569]
[1744279393585,2.931,1604.7,1604.6,5.71569]
[1744279394087,2.931,1604.7,1604.6,7.38759]
[1744279394290,2.931,1604.7,1604.6,8.92349]
[1744279394588,1.24684,1604.5,1604.4,4.469]
[1744279394791,2.54463,1604.6,1604.4,5.71591]
[1744279394980,2.92374,1604.5,1604.4,4.469]
[1744279395490,1.6769,1604.5,1604.4,5.71592]
[1744279396193,1.6769,1604.5,1604.3,3.2078]
[1744279396194,7.92374,1604.5,1604.3,8.92373]
[1744279396382,1.3448,1604.4,1604.3,8.92373]
[1744279396586,4.26862,1604.4,1604.3,3.2078]
[1744279396787,3.0217,1604.4,1604.3,4.45479]
[1744279397682,1.3448,1604.4,1604.3,4.45479]
[1744279397893,1.9189,1604.6,1604.5,1.24684]
[1744279398490,1.9189,1604.6,1604.4,5.71587]
[1744279398690,3.16571,1604.6,1604.4,4.469]
[1744279398891,1.6176,1604.5,1604.4,5.71586]
[1744279399598,1.6176,1604.5,1604.3,3.2078]
[1744279399794,1.359,1604.4,1604.3,4.45479]
[1744279399998,1.6176,1604.5,1604.4,1.24692]
[1744279400200,1.6176,1604.5,1604.4,2.79232]
[1744279400493,0.6211,1604.6,1604.5,1.24684]
[1744279400798,1.24659,1604.9,1604.7,1.24665]
[1744279400987,1.5463,1604.8,1604.7,1.24665]
[1744279401192,2.79291,1604.8,1604.5,10.46897]
[1744279401388,2.54571,1604.7,1604.5,10.46897]
[1744279401593,2.54571,1604.7,1604.5,9.2222]
[1744279401795,1.5463,1604.6,1604.5,9.2222]
[1744279402003,2.79306,1604.6,1604.5,6.0144]
[1744279402302,2.79306,1604.6,1604.5,4.469]
[1744279403098,1.24689,1604.5,1604.3,8.92475]
[1744279403402,1.5463,1604.4,1604.3,8.92475]
[1744279403898,2.8647,1604.4,1604.3,8.92475]
[1744279405202,2.55969,1604.5,1604.3,8.92475]
[1744279405403,2.9877,1604.5,1604.4,2.93742]
[1744279405599,0.6211,1604.6,1604.5,1.24684]
[1744279405793,0.6211,1604.6,1604.5,6.14514]
[1744279406199,2.296,1604.6,1604.5,4.8983]
[1744279406604,2.296,1604.6,1604.5,6.14514]
[1744279406806,1.6749,1604.6,1604.5,6.14514]
[1744279407209,1.6749,1604.6,1604.4,1.24686]
[1744279407508,1.6749,1604.6,1604.5,1.24684]
[1744279407707,2.92167,1604.6,1604.4,2.85646]
[1744279407900,1.6749,1604.6,1604.4,2.85646]
[1744279408100,1.6553,1604.5,1604.4,2.85646]
[1744279409103,1.6553,1604.5,1604.3,9.0459]
[1744279409104,1.6553,1604.5,1604.3,8.92472]
[1744279409305,1.2654,1604.4,1604.3,7.6778]
[1744279409706,2.9207,1604.4,1604.3,8.92479]
[1744279410305,4.2409,1604.4,1604.3,8.92479]
[1744279412312,4.2409,1604.4,1604.3,10.60939]
[1744279413807,0.6211,1604.5,1604.4,1.24692]
[1744279414002,2.3024,1604.5,1604.4,2.79002]
[1744279414813,0.6211,1604.5,1604.4,2.79002]
[1744279418007,0.6211,1604.5,1604.4,4.11142]
[1744279418208,1.6813,1604.6,1604.4,2.8645]
[1744279418413,0.6211,1604.9,1604.5,4.8179]
[1744279418614,0.6211,1604.9,1604.7,1.24668]
[1744279418615,1.537,1604.8,1604.7,1.24668]
[1744279418906,1.537,1604.8,1604.7,2.85678]
[1744279419113,2.78361,1604.8,1604.7,1.6101]
[1744279419412,1.537,1604.8,1604.7,2.85678]
[1744279419712,1.537,1604.8,1604.7,1.24668]
[1744279420115,2.78364,1604.8,1604.6,7.37082]
[1744279420512,1.5719,1604.7,1604.6,7.37082]
[1744279422517,1.8773,1604.9,1604.8,1.24661]
[1744279422718,3.5788,1604.9,1604.8,1.24661]
[1744279423020,4.82533,1604.9,1604.8,1.24661]
[1744279423220,1.24661,1604.8,1604.7,2.91373]
[1744279423421,2.94811,1604.8,1604.7,1.24663]
[1744279423616,1.7015,1604.8,1604.7,1.24663]
[1744279424026,2.94811,1604.8,1604.7,1.24663]
[1744279424320,1.7015,1604.8,1604.7,1.24663]
[1744279424621,2.94811,1604.8,1604.7,1.24668]
[1744279426522,1.7015,1604.8,1604.7,1.24668]
[1744279427123,1.7015,1604.8,1604.7,2.91688]
[1744279428226,1.7015,1604.8,1604.7,1.24668]
[1744279429215,2.94811,1604.8,1604.7,1.24668]
[1744279430724,1.7015,1604.8,1604.7,1.24668]
[1744279431023,2.94811,1604.8,1604.7,1.24668]
[1744279431529,2.94811,1604.8,1604.6,7.2929]
[1744279431825,1.6504,1604.7,1604.6,7.2929]
[1744279434824,2.89708,1604.7,1604.6,4.468]
[1744279437324,1.6504,1604.7,1604.6,5.71476]
[1744279437523,1.6504,1604.7,1604.6,7.28306]
[1744279437826,2.89708,1604.7,1604.6,4.468]
[1744279438418,1.24676,1604.6,1604.5,3.2078]
[1744279438619,5.37916,1604.6,1604.5,3.2078]
[1744279439525,5.37916,1604.6,1604.5,4.45464]
[1744279439730,5.37916,1604.6,1604.5,3.2078]
[1744279439930,1.24692,1604.4,1604.3,14.14173464]
[1744279440228,1.24692,1604.4,1604.3,9.68698464]
[1744279440622,2.87452,1604.4,1604.3,9.68698464]
[1744279440820,1.6276,1604.4,1604.3,9.68698464]
[1744279441029,1.6276,1604.4,1604.3,10.93397464]
[1744279442121,1.6276,1604.4,1604.3,12.57637464]
[1744279442330,2.87452,1604.4,1604.3,10.93397464]
[1744279443131,1.6276,1604.4,1604.3,10.93397464]
[1744279443329,0.6211,1604.5,1604.4,1.24692]
[1744279443524,1.86794,1604.5,1604.3,15.32571464]
[1744279443725,1.5985,1604.4,1604.3,16.98691464]
[1744279444129,1.5985,1604.4,1604.3,15.73998464]
[1744279444432,1.5985,1604.4,1604.3,16.98697464]
[1744279444631,2.84542,1604.4,1604.3,16.98697464]
[1744279445232,2.84542,1604.4,1604.3,7.29999]
[1744279445432,2.84542,1604.4,1604.3,6.053]
[1744279445634,2.84542,1604.4,1604.3,4.869]
[1744279446027,1.24699,1604.3,1604.2,0.00935016]
[1744279446225,1.5985,1604.3,1604.2,2.91762016]
[1744279446540,1.24694,1604.4,1604.2,2.91755016]
[1744279446728,1.24694,1604.4,1604.3,1.6192]
[1744279447529,1.24687,1604.5,1604.4,1.24692]
[1744279448033,1.24687,1604.5,1604.4,6.0852]
[1744279449337,1.24687,1604.5,1604.4,1.6192]
[1744279450232,2.81687,1604.5,1604.4,1.6192]
[1744279450429,1.57,1604.5,1604.4,1.6192]
[1744279450635,3.1128,1604.6,1604.5,1.24684]
[1744279450837,2.4917,1604.6,1604.5,1.24684]
[1744279451334,3.73846,1604.6,1604.5,2.82524]
[1744279451535,1.24687,1604.5,1604.3,4.45473]
[1744279451833,2.81687,1604.5,1604.4,2.82532]
[1744279452438,2.81687,1604.5,1604.4,1.5784]
[1744279452630,1.24692,1604.4,1604.3,4.45473]
[1744279452830,1.24692,1604.4,1604.3,4.8303]
[1744279453430,1.24692,1604.4,1604.3,6.07729]
[1744279454336,1.57,1604.5,1604.4,1.24692]
[1744279454337,2.81684,1604.5,1604.4,1.24692]
[1744279454535,2.81684,1604.5,1604.3,6.07723]
[1744279454736,1.6126,1604.4,1604.3,6.07723]
[1744279455535,3.73852,1604.6,1604.5,1.24684]
[1744279456034,1.24684,1604.5,1604.4,2.8939]
[1744279456332,2.79694,1604.5,1604.4,2.8939]
[1744279457042,2.79694,1604.5,1604.4,1.647]
[1744279457441,7.92930679,1604.8,1604.7,1.24668]
[1744279457642,9.17592679,1604.8,1604.7,1.24668]
[1744279458139,10.72602679,1604.8,1604.7,1.24668]
[1744279458338,10.72602679,1604.8,1604.6,1.647]
[1744279458533,10.72602679,1604.8,1604.7,1.24668]
[1744279459029,9.47940679,1604.8,1604.7,1.24668]
[1744279459232,10.72601679,1604.8,1604.7,1.24668]
[1744279459532,9.47940679,1604.8,1604.6,2.89374]
[1744279459732,1.6714,1604.7,1604.6,2.89374]
[1744279462947,7.30820679,1604.8,1604.7,1.24668]
[1744279463141,7.30820679,1604.8,1604.7,6.14828]
[1744279463448,9.64930052,1604.9,1604.8,1.24661]
[1744279463639,9.64930052,1604.9,1604.8,7.40641]
[1744279465547,5.51650052,1604.9,1604.8,7.40641]
[1744279465748,4.89540052,1604.9,1604.8,8.57641]
[1744279466048,3.51538052,1604.9,1604.8,19.57241]
[1744279466344,5.15501679,1605.0,1604.9,1.24653]
[1744279466539,5.15501679,1605.0,1604.9,7.25073]
[1744279466744,5.15501679,1605.0,1604.9,53.05073]
[1744279467135,4.71491679,1605.0,1604.9,53.05073]
[1744279467540,2.47636679,1605.0,1604.9,53.05073]
[1744279467743,8.14195686,1605.1,1605.0,1.24645]
[1744279467941,8.14195686,1605.3,1605.2,1.24629]
[1744279468146,8.14195686,1605.3,1605.2,8.91909]
[1744279468339,8.14195686,1605.3,1605.2,13.91909]
[1744279468645,6.25985687,1605.3,1605.2,54.71909]
[1744279468844,6.25985687,1605.3,1605.2,56.29579]
[1744279469950,6.25985687,1605.3,1605.2,56.79050737]
[1744279470448,4.12885687,1605.3,1605.2,56.79050737]
[1744279471252,4.12885687,1605.3,1605.2,62.78650737]
[1744279471440,2.25505687,1605.3,1605.2,62.78650737]
[1744279472749,0.00935016,1605.4,1605.3,1.24622]
[1744279472943,0.00935016,1605.4,1605.3,4.06922]
[1744279473650,1.6e-07,1605.4,1605.3,15.06522]
[1744279474042,1.6e-07,1605.4,1605.3,55.86522]
[1744279476452,1.6e-07,1605.4,1605.3,50.86522]
[1744279477651,1.6e-07,1605.4,1605.3,43.60242]
[1744279478245,1.6e-07,1605.4,1605.3,48.06242]
[1744279479051,1.6e-07,1605.4,1605.3,46.50622]
[1744279479251,1.26000016,1605.4,1605.3,46.50622]
[1744279479649,1.26000016,1605.4,1605.3,42.04622]
[1744279479850,1.26000016,1605.4,1605.3,46.50622]
[1744279480653,1.26000016,1605.4,1605.3,5.70622]
[1744279483054,1.26000016,1605.4,1605.2,46.50623]
[1744279483055,7.50614016,1605.4,1605.2,46.50623]
[1744279483354,1.6612,1605.3,1605.2,46.50629]
[1744279483749,1.6612,1605.3,1605.2,5.70629]
[1744279487154,6.6612,1605.3,1605.1,42.05567016]
[1744279487351,2.47629,1605.2,1605.1,0.00935016]
[1744279487547,4.03269,1605.2,1605.1,0.00935016]
[1744279487747,9.03269,1605.2,1605.1,0.00935016]
[1744279488552,9.65379,1605.2,1605.1,0.00935016]
[1744279491860,12.86159,1605.2,1605.1,0.00935016]
[1744279493653,12.86159,1605.2,1605.1,1.25572016]
[1744279494059,12.86159,1605.2,1605.1,0.00935016]
[1744279494253,7.86159,1605.2,1605.1,0.00935016]
[1744279496257,4.65379,1605.2,1605.1,0.00935016]
[1744279496463,3.4075,1605.2,1605.1,1.25572016]
[1744279496965,3.4075,1605.2,1605.1,4.46352016]
[1744279497164,4.65379,1605.2,1605.1,7.67815016]
[1744279497362,4.65379,1605.2,1605.1,8.92452016]
[1744279497762,4.03269,1605.2,1605.1,8.92452016]
[1744279498066,4.03269,1605.2,1605.1,7.67815016]
[1744279498956,2.7864,1605.2,1605.1,8.92452016]
[1744279500564,2.7864,1605.2,1605.1,5.71672016]
[1744279501367,2.7864,1605.2,1605.1,7.30892016]
[1744279502375,1.88110016,1605.4,1605.3,1.24622]
[1744279502669,4.78330016,1605.4,1605.3,1.24622]
[1744279502862,6.02945016,1605.4,1605.2,2.81374]
[1744279503171,1.6858,1605.3,1605.2,2.81379]
[1744279503366,2.93202,1605.3,1605.1,4.47035016]
[1744279503561,2.93202,1605.3,1605.1,5.71665016]
[1744279503759,1.6858,1605.2,1605.1,5.71665016]
[1744279505067,2.93209,1605.2,1605.1,4.47035016]
[1744279505674,2.93209,1605.2,1605.1,0.00935016]
[1744279505874,2.93209,1605.2,1604.6,4.45452]
[1744279505875,1.24666,1604.8,1604.6,4.45452]
[1744279506069,1.24676,1604.6,1604.5,14.14798464]
[1744279506372,3.78094,1604.7,1604.5,15.39477464]
[1744279506577,2.88996,1604.6,1604.5,14.14798464]
[1744279506970,1.6432,1604.6,1604.5,10.93382464]
[1744279507579,1.6432,1604.6,1604.5,1.24684]
[1744279507971,1.6432,1604.6,1604.5,2.87924]
[1744279510070,3.1553,1604.7,1604.6,1.24676]
[1744279510269,4.7133,1604.7,1604.6,1.24676]
[1744279511178,5.95999,1604.7,1604.5,2.87918]
[1744279511378,1.5488,1604.6,1604.5,2.87924]
[1744279511782,2.7956,1604.6,1604.4,20.20098184]
[1744279512081,2.79562,1604.6,1604.4,18.95408184]
[1744279512380,1.5488,1604.5,1604.4,20.20100184]
[1744279513175,1.5488,1604.5,1604.4,5.71727016]
[1744279513376,2.79564,1604.5,1604.4,4.47035016]
[1744279513571,1.5488,1604.5,1604.4,5.71727016]
[1744279514105,1.5488,1604.5,1604.4,1.25627016]
[1744279514286,2.79564,1604.5,1604.4,0.00935016]
[1744279515283,3.41674,1604.5,1604.4,0.00935016]
[1744279515675,2.1699,1604.5,1604.4,0.00935016]
[1744279515872,2.1699,1604.5,1604.4,1.25627016]
[1744279516473,2.1699,1604.5,1604.4,2.89987016]
[1744279518283,3.41674,1604.5,1604.4,0.00935016]
[1744279518785,11.62454,1604.5,1604.4,0.00935016]
[1744279522683,1.24723,1604.0,1603.9,3.2078]
[1744279522884,1.24738,1603.8,1603.7,4.459]
[1744279523181,1.24738,1603.8,1603.4,9.66161303]
[1744279523182,3.7396,1603.8,1603.4,9.66161303]
[1744279523384,4.45542,1603.5,1603.4,9.66161303]
[1744279524186,6.89012,1603.5,1603.4,9.66161303]
[1744279524386,7.51122,1603.5,1603.4,9.66161303]
[1744279524587,16.97022,1603.5,1603.4,1.00060335]
[1744279524781,16.97022,1603.5,1603.4,3.35e-06]
[1744279527086,1.24769,1603.4,1603.3,14.49308184]
[1744279527288,3.45239,1603.4,1603.3,13.05427184]
[1744279527587,1.24777,1603.3,1603.2,19.26892984]
[1744279527785,6.03917,1603.3,1603.2,19.26892984]
[1744279527989,1.24816,1602.8,1602.7,4.4199]
[1744279528188,1.24816,1602.8,1602.7,7.27241]
[1744279528489,1.24816,1602.8,1602.7,7.27244]
[1744279528885,1.24816,1602.8,1602.7,6.0242]
[1744279529888,9.16625,1603.0,1602.8,1.2481]
[1744279530089,1.24816,1602.8,1602.7,5.66809]
[1744279530285,1.24816,1602.8,1602.7,4.4199]
[1744279530590,1.24816,1602.8,1602.7,3.2078]
[1744279530787,1.24816,1602.8,1602.7,4.45604]
[1744279530992,2.81823,1602.9,1602.8,1.24816]
[1744279531180,2.81823,1602.9,1602.8,2.81676]
[1744279532095,6.37485,1603.0,1602.8,2.81676]
[1744279532394,5.07695,1603.0,1602.9,2.78438]
[1744279533292,5.07695,1603.0,1602.9,1.5363]
[1744279534594,5.07695,1603.0,1602.9,2.78438]
[1744279534994,3.8289,1603.0,1602.9,2.78438]
[1744279535592,3.8289,1603.0,1602.9,7.24638]
[1744279536599,3.8289,1603.0,1602.9,2.78438]
[1744279536797,5.0769,1603.0,1602.9,1.5363]
[1744279536988,5.0769,1603.0,1602.9,2.78438]
[1744279537296,5.0769,1603.0,1602.9,1.5363]
[1744279537500,1.8691,1603.0,1602.9,1.5363]
[1744279537698,6.94902,1603.0,1602.6,0.00935]
[1744279537995,1.24824,1602.7,1602.6,2.91695]
[1744279538594,1.24824,1602.7,1602.6,4.16527]
[1744279539296,1.24824,1602.7,1602.6,2.91695]
[1744279539498,2.83774,1602.7,1602.6,2.91695]
[1744279543504,3.45884,1602.7,1602.6,0.00935]
[1744279544300,8.45884,1602.7,1602.6,0.00935]
[1744279545708,8.95404262,1602.7,1602.6,0.00935]
[1744279547305,1.24884,1602.0,1601.7,3.2078]